Cogmind - Beta 15 @@@ ROGUE MODE // 2025.05.06 @ 22:49:44 Player: Minty Result: Destroyed by QR-39C(R) with Subdweller Laser Performance ------------- Evolutions (0) 0 Regions Visited (2) 400 Robots Destroyed (12) 60 Value Destroyed (323) 323 Prototype IDs (2) 40 Alien Tech Used (0) 0 Bonus (-12) -12 TOTAL SCORE: 811 Bonus ------- Friendly Fire -12 Cogmind --------- Core Integrity 0/250 Matter 300/300 Energy 125/125 System Corruption 0% Temperature Cool (21) Movement Rolling (100) Location -10/Subcaves Parts ------- > --- POWER (1) -------- Light Ion Engine > --- PROPULSION (2) --- Compact Wheel > --- UTILITY (2) ------ Small Storage Unit Targeting Computer > --- WEAPON (2) ------- Subdweller Beam Cannon > --- INVENTORY (8) ---- Light Treads Light Treads Aluminum Leg Wheel Small Matter Pod (50) Small Matter Pod (50) Hacking Suite Dirty Datajack (20) Peak State ------------ > --- POWER ------------ Subdweller Power Source > --- PROPULSION ------- Aluminum Leg Aluminum Leg > --- UTILITY ---------- Small Storage Unit Targeting Computer > --- WEAPON ----------- Subdweller Laser Subdweller Laser > --- INVENTORY -------- Light Treads Light Treads Wheel Compact Wheel Small Matter Pod Small Matter Pod Hacking Suite Medium Laser [Rating: 11] Favorites ----------- Power Light Ion Engine Engine Light Ion Engine Propulsion Aluminum Leg Leg Aluminum Leg Wheel Wheel Utility Small Storage Unit Storage Small Storage Unit Processor Targeting Computer Weapon Subdweller Laser Energy Gun Subdweller Laser Energy Cannon Subdweller Beam Cannon Build | -11 -10 -10 ------- Run | Yrd Mat Sub Slots Evolved . | . . . Power . | . . . Propulsion . | . . . Utility . | . . . Weapon . | . . . Parts Attached 10 | . 2 8 Power 3 | . 1 2 Engine 3 | . 1 2 Core . | . . . Reactor . | . . . Propulsion 3 | . . 3 Treads . | . . . Leg . | . . . Wheel 3 | . . 3 Hover . | . . . Flight . | . . . Utility 1 | . 1 . Device . | . . . Storage . | . . . Processor 1 | . 1 . Hackware . | . . . Protection . | . . . Artifact . | . . . Weapon 3 | . . 3 Energy Gun 2 | . . 2 Energy Cannon 1 | . . 1 Ballistic Gun . | . . . Ballistic Cannon . | . . . Launcher . | . . . Special Weapon . | . . . Impact Weapon . | . . . Slashing Weapon . | . . . Piercing Weapon . | . . . Special Melee Weapon . | . . . Unidentified Prototypes . | . . . Parts Lost 7 | . . 7 Power 2 | . . 2 Propulsion 3 | . . 3 Utility . | . . . Weapon 2 | . . 2 Highest Loss Streak 2 | . . 2 To Critical Strikes . | . . . Average Backups 7 | 6 7 7 Power . | 1 . . Propulsion 3 | 4 4 3 Utility 2 | . 2 3 Weapon . | 1 1 . Tool/Special . | . . . Unused Backups 11 | . 2 9 Power 2 | . 2 . Propulsion 3 | . . 3 Utility 3 | . . 3 Weapon 2 | . . 2 Tool/Special 1 | . . 1 Average Slot Usage (%) 98 | . 97 98 Engine 13 | . 14 13 Leg 18 | . 28 13 Wheel 8 | . . 14 Storage 14 | . 14 14 Processor 13 | . 12 14 Energy Gun 25 | . 28 23 Energy Cannon 2 | . . 4 Peak Build Rating 11 | 6 8 11 Average Rating 8 | 6 7 9 On Entrance 6 | 6 6 8 Naked Turns . | . . . Heaviest Build 20 | 12 14 20 Greatest Support 26 | 20 20 26 Greatest Overweight (x) 1 | . . 1 Average Overweight (x) . | . . . Largest Inventory Capacity 8 | 8 8 8 Average Capacity 8 | 8 8 8 Most Carried 8 | 6 8 8 Average Carried 7 | 6 7 7 Final Capacity 8 | 8 8 8 Final Carried 8 | 6 8 8 Class Distribution -------------------- 97% | Mutant Dominant Class ---------------- Mutant | -10/Materials Mutant | -10/Subcaves Resources | -11 -10 -10 ----------- Run | Yrd Mat Sub Matter Collected 403 | 200 . 203 Remotely . | . . . Salvage Created 514 | . 84 430 Parts 34 | . 8 26 Haulers Intercepted 1 | . 1 . Recyclers Shooed . | . . . Parts Field Recycled . | . . . Retrieved Matter . | . . . Parts Self-Destructed 7 | . . 7 Prevented . | . . . Kills | -11 -10 -10 ------- Run | Yrd Mat Sub Combat Hostiles Destroyed 9 | . . 9 Guns 6 | . . 6 Cannons 3 | . . 3 Classes Destroyed 6 | . 3 3 Builder 1 | . 1 . Hauler 1 | . 1 . Operator 1 | . 1 . Swarmer 2 | . . 2 Artisan 2 | . . 2 Subdweller 7 | . . 7 Best Kill Streak 2 | . 1 2 Combat Bots Only 2 | . . 2 Max Kills in Single Turn 1 | . 1 1 Gunslinging . | . . . Exploded . | . . . Melee . | . . . Uniques/NPCs Destroyed . | . . . Combat | -11 -10 -10 -------- Run | Yrd Mat Sub Hostile Shots Fired 77 | . . 77 Missed 28 | . . 28 Hits 49 | . . 49 Projectile 49 | . . 49 Critical Strikes 2 | . . 2 Damage Taken 831 | . 8 823 Core 254 | . . 254 Absorbed by Shields . | . . . Core Remaining (%) 100 | 100 . . Volleys Fired 49 | . 8 41 Largest 2 | . 2 2 Hottest 140 | . 90 140 Shots Fired 89 | . 16 73 Gun 67 | . 16 51 Cannon 22 | . . 22 Launcher . | . . . Special . | . . . Kinetic . | . . . Thermal 77 | . 8 69 Explosive . | . . . Electromagnetic 12 | . 8 4 Robot Hit Streak 11 | . 3 11 Robot Miss Streak 2 | . 2 2 Penetration Max . | . . . Secondary Targets . | . . . Shots Hit Robots 47 | . 9 38 Core Hits 20 | . 4 16 Critical Kills . | . . . Critical Parts Destroyed 1 | . . 1 Critical Strikes 2 | . 1 1 Burn 1 | . 1 . Destroy 1 | . . 1 Melee Attacks . | . . . Impact . | . . . Slashing . | . . . Piercing . | . . . Sneak Attacks . | . . . Combat Hostiles . | . . . Follow-up Attacks . | . . . Damage Inflicted 868 | . 144 724 Guns 552 | . 138 414 Cannons 309 | . . 309 Explosions . | . . . Melee . | . . . Ramming 7 | . 6 1 Kinetic . | . . . Thermal 766 | . 74 692 Explosive . | . . . Electromagnetic 95 | . 64 31 Impact . | . . . Slashing . | . . . Piercing . | . . . Highest Corruption . | . . . Average Corruption . | . . . Corruption Purged . | . . . Corruption Blocked . | . . . Overload Shots . | . . . Overflow Damage . | . . . Projectiles . | . . . Explosions . | . . . Melee . | . . . Knockbacks . | . . . Impact . | . . . Kinetic . | . . . Secondary . | . . . Self-Inflicted Damage . | . . . Shots . | . . . Rammed . | . . . Targets Rammed 3 | . 1 2 Kicked 3 | . 1 2 Crushed . | . . . Highest Temperature 126 | . 120 126 Average Temperature 37 | . 44 33 Received Heat Transfer 255 | . 6 249 Siege Activations . | . . . Martial Activations . | . . . Shielding Activations . | . . . Robots Disrupted . | . . . Combat Hostiles . | . . . Robots Corrupted . | . . . Combat Hostiles . | . . . Parts Fried . | . . . Impact Corruptions . | . . . Robots Melted . | . . . Combat Hostiles . | . . . Parts Melted 2 | . . 2 Heat Transferred 1300 | . 296 1004 Parts Sabotaged . | . . . Parts Stolen . | . . . Parts Stripped . | . . . Power Chain Reactions . | . . . Alert | -11 -10 -10 ------- Run | Yrd Mat Sub Maximum Alert Level . | . . . Low Security (%) 100 | 100 100 . Level 1 . | . . . Level 2 . | . . . Level 3 . | . . . Level 4 . | . . . Level 5 . | . . . High Security . | . . . Max Security . | . . . Peak Influence 10 | . 10 . Initial . | . . . Average 1 | . 1 . Influence Increases 111 | . 41 70 Destroy 0b10 Robot/C 40 | . . 40 Destroy 0b10 Robot/NC 15 | . 15 . Destroy Leader 2 | . 2 . Successful Hack 24 | . 24 . Lose Combat Pursuer 30 | . . 30 Influence Decreases 111 | . 41 70 Time Decay 101 | . 41 60 Lost Part 10 | . . 10 Squads Dispatched 1 | . 1 . Investigation . | . . . Extermination . | . . . Reinforcement 1 | . 1 . Assault . | . . . Garrison . | . . . Intercept . | . . . Searches Triggered . | . . . Construction Impeded . | . . . Haulers Reinforced . | . . . Active Scanning Responses . | . . . Cargo Convoy Interrupts . | . . . Stealth | -11 -10 -10 --------- Run | Yrd Mat Sub Distress Signals . | . . . Communications Jammed . | . . . Distress Signals . | . . . Times Spotted 12 | . 1 11 Peak Tracking Total 4 | . 2 4 Tactical Retreats 1 | . . 1 Traps | -11 -10 -10 ------- Run | Yrd Mat Sub Traps Triggered . | . . . Indirectly . | . . . Trap Hack Attempts . | . . . Triggered . | . . . Disarmed . | . . . Reprogrammed . | . . . Reused . | . . . Traps Extracted . | . . . Installed . | . . . Triggered . | . . . Machines | -11 -10 -10 ---------- Run | Yrd Mat Sub Machines Disabled . | . . . Max in Single Turn . | . . . Machines Repaired . | . . . Machines Dismantled . | . . . Machines Sabotaged . | . . . Overloaded Fab Kills . | . . . Hacking | -11 -10 -10 --------- Run | Yrd Mat Sub Machines Accessed 3 | . 3 . Terminals 3 | . 3 . Fabricators . | . . . Repair Stations . | . . . Recycling Units . | . . . Scanalyzers . | . . . Garrison Access . | . . . Total Hacks 15 | . 15 . Successful 7 | . 7 . Failed 8 | . 8 . Catastrophic 1 | . 1 . Database Lockouts . | . . . Manual 9 | . 9 . Terminals 15 | . 15 . Fabricators . | . . . Repair Stations . | . . . Recycling Units . | . . . Scanalyzers . | . . . Garrison Access . | . . . Terminal Hacks 6 | . 6 . Prototype ID Bank 1 | . 1 . Locate Traps 1 | . 1 . Dispatch Records 1 | . 1 . Patrol Status 1 | . 1 . Transport Status 1 | . 1 . Zone Layout 1 | . 1 . Fabricator Hacks . | . . . Repair Station Hacks . | . . . Recycling Unit Hacks . | . . . Scanalyzer . | . . . Garrison Access Hacks . | . . . Unauthorized Hacks 1 | . 1 . Terminals 1 | . 1 . Botnet 1 | . 1 . Fabricators . | . . . Repair Stations . | . . . Recycling Units . | . . . Scanalyzers . | . . . Garrison Access . | . . . Data Cores Recovered . | . . . Used . | . . . Hacking Detections 3 | . 3 . Full Trace Events 1 | . 1 . Feedback Events . | . . . Feedback Blocked . | . . . Robot Schematics Acquired . | . . . Robots Built . | . . . Authchips . | . . . Time . | . . . Total Robot Build Rating . | . . . Part Schematics Acquired . | . . . Parts Built . | . . . Authchips . | . . . Time . | . . . Total Part Build Rating . | . . . Parts Repaired . | . . . Time . | . . . Parts Recycled . | . . . Recycled Matter . | . . . Retrieved Matter . | . . . Retrieved Components . | . . . Parts Scanalyzed . | . . . Part Schematics Acquired . | . . . Parts Damaged . | . . . Bothacking | -11 -10 -10 ------------ Run | Yrd Mat Sub Used RIF Installer . | . . . Robots Hacked . | . . . Non-combat . | . . . Combat . | . . . Robot Hacks Applied . | . . . Relay Couplers Released . | . . . Fabnet Peak Effective % . | . . . Robots Rewired . | . . . Allies Hacked . | . . . Hacks Repelled . | . . . Allies | -11 -10 -10 -------- Run | Yrd Mat Sub Total Allies . | . . . Largest Group . | . . . Highest-Rated Group . | . . . Highest-Rated Ally . | . . . Total Orders . | . . . Ally Attacks . | . . . Total Damage . | . . . Kills . | . . . Allies Corrupted . | . . . Allies Melted . | . . . Intel | -11 -10 -10 ------- Run | Yrd Mat Sub Active Infowar (turns) . | . . . Robot Analysis Total . | . . . Derelict Logs Recovered 1 | . . 1 Drone Launches . | . . . Drone Recoveries . | . . . Exploration | -11 -10 -10 ------------- Run | Yrd Mat Sub Turns Passed 918 | 3 339 576 Spaces Moved 652 | 3 238 411 Core . | . . . Treads . | . . . Legs 425 | 3 238 184 Wheels 227 | . . 227 Hover . | . . . Flight . | . . . Fastest Speed 80 | 120 120 80 Average Speed 109 | 120 120 103 Slowest Speed 190 | 120 120 190 Overloaded Moves . | . . . Propulsion Burnouts . | . . . Robots Hopped 6 | . 6 . Potential Cave-ins . | . . . Cave-ins Triggered . | . . . Exploration Rate (%) 22 | 2 30 34 Regions Visited 2 Branch Regions 1 Pre-discovered Areas . | . . . Known Exits Taken . | . . . Unknown Exits Taken 2 | 1 1 . Scrap Searched . | . . . Spaces Dug . | . . . Terrain Destroyed 2 | . . 2 Melee . | . . . Projectile 2 | . . 2 AOE . | . . . Terrain Rammed . | . . . Walls Destroyed . | . . . Machines Disabled . | . . . Actions | -11 -10 -10 --------- Run | Yrd Mat Sub Total 757 | 2 268 487 Wait 38 | . 22 16 Move 638 | 2 225 411 Hop 6 | . 6 . Pick Up 5 | . 3 2 Fast Attach 7 | . 1 6 Attach 1 | . . 1 Detach . | . . . Swap 4 | . 1 3 Drop 6 | . 1 5 Fire 49 | . 8 41 Melee . | . . . Ram . | . . . Kick 3 | . 1 2 Crush . | . . . Escape Stasis . | . . . Rewire . | . . . Trap . | . . . Miscellaneous . | . . . Route ------- -11/Scrapyard -10/Materials (discovered 2 exits: [*Mat] / [*Sub]) -10/Subcaves History --------- Turn | Location | Event 1 | -11/Scrapyard | Discovered new exit (range 3) 4 | -11/Scrapyard | Entered Materials 5 | -10/Materials | Met a group of wandering Federalists 133 | -10/Materials | Discovered new exit (range 16) 302 | -10/Materials | Build established: Mutant 330 | -10/Materials | Discovered new exit (range 7) 343 | -10/Materials | Entered Subcaves 344 | -10/Subcaves | Approached by a straggling Scientist 355 | -10/Subcaves | Learned Materials trap positions 722 | -10/Subcaves | Ambushed by angry Subdweller bent on revenge 741 | -10/Subcaves | Ambushed by angry Subdweller bent on revenge 747 | -10/Subcaves | Core integrity fell below 50% 854 | -10/Subcaves | Shifting Twisted Machinery released Scrap Shield 878 | -10/Subcaves | Shifting Twisted Machinery released Sub. Power Source 902 | -10/Subcaves | A Subdweller sparked back to life 902 | -10/Subcaves | A Subdweller sparked back to life 902 | -10/Subcaves | A Subdweller sparked back to life 907 | -10/Subcaves | Core integrity fell below 20% 919 | -10/Subcaves | Destroyed by QR-39C(R) with Subdweller Laser Last Messages --------------- 00745_ Acquired Sub. Beam Cannon. 00750_ Q5-O1H(R) destroyed. 00775_ Acquired 10 matter. 00787_ Dropped Com. Wheel. 00787_ Acquired Wheel. 00793_ Acquired 10 matter. 00818_ Wheel destroyed. 00820_ Q8-YC0(R) destroyed. 00824_ Acquired Com. Wheel. 00825_ Acquired 10 matter. Scrap Shield falls loose from the Twisted Machinery. Sub. Power Source falls loose from the Twisted Machinery. 00902_ MA-IWB(R) creaks and sparks as it begins to move. 00902_ WD-OHD(R) creaks and sparks as it begins to move. 00902_ QR-39C(R) creaks and sparks as it begins to move. 00904_ MA-IWB(R) suffers critical hit (Destroy). 00904_ Destroyed Sub. Monowheel. 00905_ Sub. Laser destroyed. 00915_ Wheel destroyed. 00915_ WD-OHD(R) destroyed. Map ----- +----------------------------------------------------+ | ?????????????????????????????????????????????????? | | ?????????????????????????????????????????????????? | | ?????????????????????????????????????????????????? | | ?????????????????????????????????????????????????? | | ?????????????????????????????????????????????????? | | ?????????????????????????????????????????????????? | | ?????????????????????????????????????????????????? | | ?????????????????????????????????????????????????? | | ?????????????????????????????????????????????????? | | ?????????????????????????????????????????????????? | | ?????????????????????????????????????????????????? | | ?????????????????????????????????????????????????? | | ?????????????????????????????????????????????????? | | ?????????????????????????????????????????????????? | | ?????????????????????????????????????????????????? | | ?????????????????????????????????????????????????? | | ?????????????????????????????????????????????????? | | ?????????????????????????????????????????????????? | | ?????????????????????????????????????????????????? | | ???????????????????#######???????????????????????? | | ???????????????????# "< #???????????????????????? | | ???????????????????#" &#?###???????????????????? | | ???????????????????# <## #####???????????????? | | ???????????????????# & ;#???????????????? | | ???????????????????#<<%!#R #???????????????? | | ???????????????????####; @ #???????????????? | | ??????????????????????## ####???????????????? | | ???????????????????????#" #??????????????????? | | ???????????????????????#" ##?????????????????? | | ???????????????????????#" #?????????????????? | | ???????????????????????#" ### #????????????????? | | ???????????????????????## #?# #???????????????? | | ???????????????????????#" ##??# ?? ??????????? | | ???????????????????????## #???# # ##" ??????????? | | ???????????????????????## #?### ##""???????????? | | ???????????????????????#" ### ##" ???????????? | | ???????????????????????#" *" # " ???????????? | | ???????????????????????#"" ""# ###""#???????????? | | ???????????????????????#"" """### " #???????????? | | ???????????????????????#" """"# " ##??????????? | | ???????????????????????### """ "" ##?????????? | | ?????????????????????????## #""" " """#?????????? | | ?????????????????????????## """" " #?????????? | | ?????????????????????????# "##! ## #?????????? | | ####?????????????????????# #### "### ###???????? | | #?????????????????????#" #??# "#?# #???????? | | #????????????????????### #?## ##?## #???????? | | #???????????????????## "### #??# #???????? | | ##?##???????????????# "### #??# ##???????? | | ## #???????????????# " ##??## #????????? | +----------------------------------------------------+ Best States ------------- Heat Dissipation 25 Energy Generation 15 Energy Capacity 250 Matter Stores 300 Matter Capacity 300 Sight Range 16 Terrain Scan Density 10 Evasion (%) 55 Targeting Accuracy 5 Item Schematics ----------------- None Robot Schematics ------------------ None Fabricated ------------ Nothing Repaired ---------- Nothing Alien Tech Used ----------------- None Achievements -------------- None Challenges ------------ None Game ------ Seed QuantumSniperExpander Manual? 0 Play Time 00:06:45 Cumulative 1020.2 hours Start 2025.05.06 @ 22:43:02 End 2025.05.06 @ 22:49:44 Sessions 1 Manual Loads 0 Difficulty Rogue Special Mode None Game No. 1247 Rogue 965 Adventurer 124 Explorer 158 Win Type - Total 44 Types 31/0/8/3/1/0/0/1/0/0 Lore% 90 Gallery% 85 Achievement% 79 Wizard Run 0 Options --------- Layout 0 ASCII 0 Keyboard 1 Movement Numpad Keybinds 0 Fullscreen 2 Font 18/X11 Map View 76x50 Zoom Use 1% Tactical HUD 1 Map Filters NONE Filters NONE Steam 1 RUN: 5be8fbf0-b13a-49d7-ac2d-09735c8ee189